fUSD/lending_fUSD_20241118
["ID","MTS","AMOUNT","RATE_DAILY","PERIOD"]
[342556534,1731963040022,-5164.9882295,9.988e-05,2]
[342556536,1731963040033,-500.0,9.989e-05,2]
[342556538,1731963040043,-500.0,9.989e-05,2]
[342556540,1731963040056,-500.0,9.989e-05,2]
[342556542,1731963040068,-500.0,9.989e-05,2]
[342556544,1731963040078,-511.17,9.989e-05,2]
[342556546,1731963040090,-537.56,9.989e-05,2]
[342556549,1731963040101,-500.0,9.989e-05,2]
[342556551,1731963040111,-500.0,9.99e-05,2]
[342556553,1731963040121,-500.0,9.99e-05,2]
[342556555,1731963040132,-220.30242794,9.99e-05,2]
[342556557,1731963040142,-500.0,9.99e-05,2]
[342556559,1731963040153,-500.0,9.99e-05,2]
[342556561,1731963040164,-500.0,9.99e-05,2]
[342556563,1731963040175,-500.0,9.99e-05,2]
[342556565,1731963040185,-500.0,9.99e-05,2]
[342556567,1731963040195,-500.0,9.99e-05,2]
[342556570,1731963040206,-500.0,9.99e-05,2]
[342556572,1731963040217,-500.0,9.99e-05,2]
[342556574,1731963040228,-500.0,9.99e-05,2]
[342556576,1731963040239,-500.0,9.99e-05,2]
[342556578,1731963040249,-500.0,9.99e-05,2]
[342556580,1731963040260,-500.0,9.99e-05,2]
[342556582,1731963040271,-500.0,9.99e-05,2]
[342556584,1731963040281,-500.0,9.99e-05,2]
[342556586,1731963040291,-500.0,9.99e-05,2]
[342556588,1731963040302,-500.0,9.99e-05,2]
[342556590,1731963040312,-433.96740678,9.99e-05,2]
[342556681,1731963041186,-66.03259322,9.99e-05,2]
[342556683,1731963041196,-423.74370514,9.99e-05,2]
[342556686,1731963041207,-76.25629486,9.99e-05,2]
[342556688,1731963041216,-500.0,9.99e-05,2]
[342556690,1731963041225,-28.40760262,9.99e-05,2]
[342556692,1731963041237,-471.59239738,9.99e-05,2]
[342556694,1731963041247,-500.0,9.99e-05,2]
[342556696,1731963041256,-500.0,9.99e-05,2]
[342556698,1731963041266,-449.39417116,9.99e-05,2]
[342556700,1731963041275,-254.8859035,9.99e-05,2]
[342556702,1731963041284,-500.0,9.99e-05,2]
[342556704,1731963041293,-500.0,9.991e-05,2]
[342556706,1731963041302,-1405.5895022,9.991e-05,2]
[342556708,1731963041314,-1000.0,9.991e-05,2]
[342556710,1731963041325,-613.11919356,9.991e-05,2]
[342556712,1731963041336,-1990.33550822,9.991e-05,2]
[342556717,1731963041369,-432.18335078,9.991e-05,2]
[342556719,1731963041380,-1015.75187423,9.991e-05,2]
[342556721,1731963041391,-2043.02057101,9.991e-05,2]
[342556723,1731963041401,-500.0,9.992e-05,2]
[342556725,1731963041411,-500.0,9.992e-05,2]
[342556727,1731963041421,-500.0,9.992e-05,2]
[342556729,1731963041430,-500.0,9.992e-05,2]
[342556731,1731963041440,-500.0,9.992e-05,2]
[342556733,1731963041449,-500.0,9.992e-05,2]
[342556735,1731963041458,-500.0,9.992e-05,2]
[342556737,1731963041467,-500.0,9.992e-05,2]
[342556739,1731963041476,-500.0,9.992e-05,2]
[342556741,1731963041486,-500.0,9.992e-05,2]
[342556743,1731963041495,-368.72052488,9.992e-05,2]
[342556745,1731963041504,-500.0,9.992e-05,2]
[342556747,1731963041513,-500.0,9.992e-05,2]
[342556749,1731963041522,-440.25890411,9.992e-05,2]
[342556751,1731963041534,-59.74109589,9.992e-05,2]
[342556753,1731963041544,-500.0,9.992e-05,2]
[342556755,1731963041553,-62.63479329,9.992e-05,2]
[342556757,1731963041565,-437.36520671,9.992e-05,2]
[342556759,1731963041575,-3541.29479374,9.993e-05,2]
[342556761,1731963041587,-4461.00142383,9.993e-05,2]
[342556764,1731963041599,-295.2679983,9.993e-05,2]
[342556766,1731963041610,-235.20209153,9.993e-05,2]
[342556768,1731963041622,-1743.7386181,9.993e-05,2]
[342556770,1731963041632,-4385.2557268,9.993e-05,2]
[342556772,1731963041642,-500.0,9.995e-05,2]
[342556774,1731963041651,-441.28513774,9.996e-05,2]
[342556776,1731963041662,-500.0,9.996e-05,2]
[342556778,1731963041671,-500.0,9.996e-05,2]
[342556780,1731963041680,-1500.0,9.996e-05,2]
[342556782,1731963041689,-500.0,9.996e-05,2]
[342556784,1731963041698,-500.0,9.996e-05,2]
[342556786,1731963041707,-500.0,9.996e-05,2]
[342556788,1731963041716,-500.0,9.996e-05,2]
[342556790,1731963041726,-500.0,9.996e-05,2]
[342556792,1731963041735,-354.52761953,9.996e-05,2]
[342556794,1731963041746,-145.47238047,9.996e-05,2]
[342556796,1731963041756,-232.03561953,9.996e-05,2]
[342556862,1731963042511,-250.13438047,9.996e-05,2]
[342556865,1731963042521,-482.05,9.996e-05,2]
[342556867,1731963042531,-446.98,9.996e-05,2]
[342556869,1731963042541,-500.0,9.996e-05,2]
[342556871,1731963042552,-500.0,9.996e-05,2]
[342556873,1731963042561,-500.0,9.996e-05,2]
[342556875,1731963042572,-500.0,9.996e-05,2]
[342556877,1731963042582,-500.0,9.996e-05,2]
[342556879,1731963042592,-331.25820897,9.996e-05,2]
[342556881,1731963042603,-500.0,9.996e-05,2]
[342556883,1731963042614,-500.0,9.996e-05,2]
[342556885,1731963042624,-500.0,9.996e-05,2]
[342556887,1731963042634,-544.95,9.996e-05,2]
[342556889,1731963042644,-500.0,9.996e-05,2]
[342556891,1731963042655,-500.0,9.996e-05,2]
[342556893,1731963042668,-500.0,9.997e-05,2]
[342556895,1731963042679,-500.0,9.997e-05,2]
[342556897,1731963042689,-500.0,9.997e-05,2]
[342556899,1731963042699,-359.86762935,9.997e-05,2]
[342556901,1731963042709,-500.0,9.997e-05,2]
[342556903,1731963042718,-500.0,9.997e-05,2]
[342556905,1731963042727,-500.0,9.997e-05,2]
[342556907,1731963042736,-500.0,9.997e-05,2]
[342556909,1731963042746,-500.0,9.997e-05,2]
[342556911,1731963042755,-500.0,9.997e-05,2]
[342556913,1731963042764,-500.0,9.997e-05,2]
[342556915,1731963042774,-451.96,9.997e-05,2]
[342556917,1731963042784,-523.89,9.997e-05,2]
[342556919,1731963042794,-500.0,9.997e-05,2]
[342556921,1731963042803,-500.0,9.997e-05,2]
[342556923,1731963042812,-500.0,9.997e-05,2]
[342556925,1731963042822,-500.0,9.997e-05,2]
[342556927,1731963042831,-500.0,9.997e-05,2]
[342556929,1731963042841,-500.0,9.997e-05,2]
[342556931,1731963042851,-500.0,9.998e-05,2]
[342556933,1731963042862,-471.78170181,9.998e-05,2]
[342556935,1731963042871,-500.0,9.998e-05,2]
[342556937,1731963042880,-500.0,9.998e-05,2]
[342556939,1731963042890,-500.0,9.998e-05,2]
[342556941,1731963042899,-500.0,9.998e-05,2]
[342556943,1731963042909,-500.0,9.998e-05,2]
[342556945,1731963042921,-500.0,9.998e-05,2]
[342556947,1731963042931,-500.0,9.998e-05,2]
[342556949,1731963042942,-500.0,9.998e-05,2]
[342556951,1731963042952,-500.0,9.998e-05,2]
[342556954,1731963042963,-500.0,9.998e-05,2]
[342556956,1731963042974,-500.0,9.998e-05,2]
[342556957,1731963042989,-500.0,9.998e-05,2]
[342556960,1731963042999,-500.0,9.998e-05,2]
[342556962,1731963043010,-500.0,9.998e-05,2]
[342556964,1731963043020,-500.0,9.998e-05,2]
[342556966,1731963043030,-413.3907823,9.998e-05,2]
[342556967,1731963043040,-199.07,9.998e-05,2]
[342556970,1731963043050,-500.0,9.998e-05,2]
[342556971,1731963043061,-500.0,9.998e-05,2]
[342556973,1731963043072,-500.0,9.998e-05,2]
[342556976,1731963043082,-500.0,9.998e-05,2]
[342556977,1731963043092,-500.0,9.998e-05,2]
[342556979,1731963043101,-500.0,9.998e-05,2]
[342556981,1731963043111,-304.86867682,9.998e-05,2]
[342556984,1731963043123,-195.13132318,9.998e-05,2]
[342556986,1731963043132,-256.29590544,9.998e-05,2]
[342556988,1731963043142,-500.0,9.998e-05,2]
[342556990,1731963043152,-500.0,9.998e-05,2]
[342556992,1731963043164,-500.0,9.998e-05,2]
[342556994,1731963043174,-214.0,9.998e-05,2]
[342556996,1731963043184,-500.0,9.998e-05,2]
[342556998,1731963043194,-399.36,9.998e-05,2]
[342557000,1731963043203,-500.0,9.998e-05,2]
[342557002,1731963043213,-500.0,9.998e-05,2]
[342557004,1731963043222,-558.77,9.998e-05,2]
[342557006,1731963043231,-903.95,9.998e-05,2]
[342557008,1731963043241,-500.0,9.998e-05,2]
[342557010,1731963043250,-500.0,9.998e-05,2]
[342557012,1731963043259,-500.0,9.998e-05,2]
[342557014,1731963043269,-500.0,9.999e-05,2]
[342557016,1731963043279,-294.12919682,9.999e-05,2]
[342557018,1731963043287,-500.0,9.999e-05,2]
[342557019,1731963043296,-273.15404978,9.999e-05,2]
[342557021,1731963043306,-500.0,9.999e-05,2]
[342557023,1731963043315,-500.0,9.999e-05,2]
[342557025,1731963043324,-500.0,9.999e-05,2]
[342557027,1731963043334,-327.08,9.999e-05,2]
[342557029,1731963043343,-500.0,9.999e-05,2]
[342557031,1731963043352,-500.0,9.999e-05,2]
[342557033,1731963043361,-500.0,9.999e-05,2]
[342557035,1731963043372,-475.98,9.999e-05,2]
[342557037,1731963043381,-500.0,9.999e-05,2]
[342557039,1731963043390,-500.0,9.999e-05,2]
[342557042,1731963043400,-500.0,9.999e-05,2]
[342557044,1731963043413,-500.0,9.999e-05,2]
[342557046,1731963043424,-500.0,9.999e-05,2]
[342557047,1731963043434,-500.0,9.999e-05,2]
[342557050,1731963043444,-500.0,9.999e-05,2]
[342557052,1731963043453,-500.0,9.999e-05,2]
[342557054,1731963043463,-644.14,9.999e-05,2]
[342557056,1731963043473,-500.0,9.999e-05,2]
[342557057,1731963043482,-500.0,9.999e-05,2]
[342557059,1731963043492,-500.0,9.999e-05,2]
[342557061,1731963043501,-500.0,9.999e-05,2]
[342557063,1731963043511,-500.0,9.999e-05,2]
[342557066,1731963043520,-500.0,9.999e-05,2]
[342557068,1731963043530,-500.0,9.999e-05,2]
[342557070,1731963043539,-500.0,9.999e-05,2]
[342557071,1731963043548,-500.0,9.999e-05,2]
[342557073,1731963043557,-500.0,9.999e-05,2]
[342557075,1731963043566,-500.0,9.999e-05,2]
[342557077,1731963043576,-500.0,9.999e-05,2]
[342557079,1731963043585,-500.0,9.999e-05,2]
[342557081,1731963043594,-500.0,9.999e-05,2]
[342557083,1731963043603,-446.45148502,9.999e-05,2]
[342557086,1731963043616,-53.54851498,9.999e-05,2]
[342557088,1731963043625,-500.0,9.999e-05,2]
[342557090,1731963043634,-162.38389182,9.999e-05,2]
[342557092,1731963043646,-337.61610818,9.999e-05,2]
[342557094,1731963043656,-500.0,9.999e-05,2]
[342557096,1731963043669,-500.0,9.999e-05,2]
[342557098,1731963043679,-500.0,9.999e-05,2]
[342557100,1731963043688,-500.0,9.999e-05,2]
[342557102,1731963043698,-500.0,9.999e-05,2]
[342557104,1731963043707,-500.0,9.999e-05,2]
[342557106,1731963043716,-500.0,9.999e-05,2]
[342557108,1731963043726,-500.0,9.999e-05,2]
[342557110,1731963043734,-500.0,9.999e-05,2]
[342557112,1731963043744,-373.63,9.999e-05,2]
[342557114,1731963043753,-500.0,9.999e-05,2]
[342557116,1731963043763,-500.0,9.999e-05,2]
[342557118,1731963043771,-500.0,9.999e-05,2]
[342557120,1731963043780,-500.0,9.999e-05,2]
[342557122,1731963043790,-500.0,9.999e-05,2]
[342557124,1731963043799,-500.0,9.999e-05,2]
[342557126,1731963043808,-500.0,9.999e-05,2]
[342557128,1731963043817,-500.0,9.999e-05,2]
[342557130,1731963043827,-500.0,9.999e-05,2]
[342557132,1731963043836,-500.0,9.999e-05,2]
[342557134,1731963043845,-500.0,9.999e-05,2]
[342557136,1731963043854,-500.0,9.999e-05,2]
[342557138,1731963043863,-500.0,9.999e-05,2]
[342557145,1731963043926,-500.0,9.999e-05,2]
[342557147,1731963043936,-221.95,9.999e-05,2]
[342557149,1731963043945,-500.0,9.999e-05,2]
[342557151,1731963043955,-500.0,9.999e-05,2]
[342557153,1731963043964,-500.0,9.999e-05,2]
[342557155,1731963043975,-500.0,9.999e-05,2]
[342557157,1731963043987,-500.0,9.999e-05,2]
[342557159,1731963043996,-500.0,9.999e-05,2]
[342557161,1731963044005,-500.0,9.999e-05,2]
[342557163,1731963044016,-500.0,9.999e-05,2]
[342557165,1731963044025,-500.0,9.999e-05,2]
[342557167,1731963044034,-500.0,9.999e-05,2]
[342557169,1731963044043,-500.0,9.999e-05,2]
[342557171,1731963044056,-500.0,9.999e-05,2]
[342557173,1731963044065,-536.03336642,9.999e-05,2]
[342557175,1731963044074,-500.0,9.999e-05,2]
[342557177,1731963044083,-500.0,9.999e-05,2]
[342557179,1731963044092,-500.0,9.999e-05,2]
[342557181,1731963044101,-500.0,9.999e-05,2]
[342557183,1731963044111,-500.0,9.999e-05,2]
[342557185,1731963044120,-500.0,9.999e-05,2]
[342557187,1731963044129,-500.0,9.999e-05,2]
[342557189,1731963044140,-500.0,9.999e-05,2]
[342557191,1731963044149,-500.0,9.999e-05,2]
[342557193,1731963044158,-372.83,9.999e-05,2]
[342557195,1731963044174,-500.0,9.999e-05,2]
[342557197,1731963044183,-500.0,9.999e-05,2]
[342557199,1731963044192,-367.91,9.999e-05,2]
[342557201,1731963044201,-500.0,9.999e-05,2]
[342557203,1731963044210,-500.0,9.999e-05,2]
[342557205,1731963044219,-500.0,9.999e-05,2]
[342557206,1731963044228,-500.0,9.999e-05,2]
[342557208,1731963044237,-500.0,9.999e-05,2]
[342557210,1731963044246,-500.0,9.999e-05,2]
[342557212,1731963044255,-448.66,9.999e-05,2]
[342557214,1731963044264,-500.0,9.999e-05,2]
[342557216,1731963044273,-500.0,9.999e-05,2]
[342557218,1731963044283,-500.0,9.999e-05,2]
[342557219,1731963044292,-500.0,9.999e-05,2]
[342557220,1731963044302,-500.0,9.999e-05,2]
[342557221,1731963044311,-500.0,9.999e-05,2]
[342557222,1731963044320,-500.0,9.999e-05,2]
[342557223,1731963044329,-593.77643924,9.999e-05,2]
[342557224,1731963044338,-500.0,9.999e-05,2]
[342557225,1731963044347,-500.0,9.999e-05,2]
[342557226,1731963044356,-500.0,9.999e-05,2]
[342557227,1731963044365,-500.0,9.999e-05,2]
[342557228,1731963044374,-500.0,9.999e-05,2]
[342557229,1731963044383,-500.0,9.999e-05,2]
[342557230,1731963044392,-500.0,9.999e-05,2]
[342557232,1731963044401,-500.0,9.999e-05,2]
[342557234,1731963044410,-500.0,9.999e-05,2]
[342557236,1731963044425,-500.0,9.999e-05,2]
[342557238,1731963044434,-500.0,9.999e-05,2]
[342557240,1731963044444,-500.0,9.999e-05,2]
[342557242,1731963044453,-500.0,9.999e-05,2]
[342557244,1731963044463,-257.54,9.999e-05,2]
[342557246,1731963044472,-500.0,9.999e-05,2]
[342557248,1731963044482,-500.0,9.999e-05,2]
[342557250,1731963044491,-500.0,9.999e-05,2]
[342557252,1731963044501,-500.0,9.999e-05,2]
[342557254,1731963044511,-500.0,9.999e-05,2]
[342557256,1731963044521,-500.0,9.999e-05,2]
[342557258,1731963044530,-420.11370382,9.999e-05,2]
[342557260,1731963044539,-511.17,9.999e-05,2]
[342557262,1731963044548,-511.17,9.999e-05,2]
[342557264,1731963044557,-511.17,9.999e-05,2]
[342557266,1731963044566,-511.17,9.999e-05,2]
[342557268,1731963044576,-511.17,9.999e-05,2]
[342557270,1731963044586,-511.17,9.999e-05,2]
[342557272,1731963044595,-511.17,9.999e-05,2]
[342557274,1731963044604,-511.17,9.999e-05,2]
[342557276,1731963044614,-511.17,9.999e-05,2]
[342557278,1731963044623,-511.17,9.999e-05,2]
[342557280,1731963044632,-511.17,9.999e-05,2]
[342557282,1731963044642,-511.17,9.999e-05,2]
[342557284,1731963044651,-511.17,9.999e-05,2]
[342557286,1731963044660,-511.17,9.999e-05,2]
[342557288,1731963044672,-511.17,9.999e-05,2]
[342557290,1731963044681,-511.17,9.999e-05,2]
[342557292,1731963044691,-511.17,9.999e-05,2]
[342557294,1731963044700,-511.17,9.999e-05,2]
[342557296,1731963044709,-511.17,9.999e-05,2]
[342557298,1731963044718,-511.17,9.999e-05,2]
[342557300,1731963044727,-511.17,9.999e-05,2]
[342557302,1731963044737,-511.17,9.999e-05,2]
[342557303,1731963044746,-511.29510047,9.999e-05,2]
[342557305,1731963044756,-500.0,9.999e-05,2]
[342557307,1731963044765,-500.0,9.999e-05,2]
[342557309,1731963044774,-261.9461499,9.999e-05,2]
[342557311,1731963044783,-537.56,9.999e-05,2]
[342557313,1731963044793,-537.56,9.999e-05,2]
[342557315,1731963044802,-537.56,9.999e-05,2]
[342557317,1731963044813,-537.56,9.999e-05,2]
[342557319,1731963044823,-537.56,9.999e-05,2]
[342557321,1731963044833,-537.56,9.999e-05,2]
[342557323,1731963044843,-537.56,9.999e-05,2]
[342557325,1731963044852,-201.57018706,9.999e-05,2]
[342557328,1731963044866,-335.98981294,9.999e-05,2]
[342557330,1731963044875,-537.56,9.999e-05,2]
[342557332,1731963044884,-537.56,9.999e-05,2]
[342557334,1731963044894,-537.56,9.999e-05,2]
[342557336,1731963044904,-537.56,9.999e-05,2]
[342557338,1731963044915,-537.56,9.999e-05,2]
[342557340,1731963044924,-537.56,9.999e-05,2]
[342557342,1731963044933,-537.56,9.999e-05,2]
[342557344,1731963044943,-537.56,9.999e-05,2]
[342557346,1731963044952,-537.56,9.999e-05,2]
[342557348,1731963044961,-537.56,9.999e-05,2]
[342557350,1731963044974,-537.56,9.999e-05,2]
[342557352,1731963044983,-537.56,9.999e-05,2]
[342557354,1731963044992,-537.56,9.999e-05,2]
[342557355,1731963045002,-500.0,9.999e-05,2]
[342557357,1731963045013,-537.56,9.999e-05,2]
[342557359,1731963045023,-500.0,9.999e-05,2]
[342557361,1731963045032,-537.79388908,9.999e-05,2]
[342557363,1731963045041,-500.0,9.999e-05,2]
[342557365,1731963045052,-500.0,9.999e-05,2]
[342557367,1731963045062,-500.0,9.999e-05,2]
[342557369,1731963045072,-500.0,9.999e-05,2]
[342557371,1731963045081,-500.0,9.999e-05,2]
[342557373,1731963045090,-500.0,9.999e-05,2]
[342557375,1731963045100,-500.0,9.999e-05,2]
[342557377,1731963045109,-500.0,9.999e-05,2]
[342557379,1731963045118,-500.0,9.999e-05,2]
[342557381,1731963045127,-500.0,9.999e-05,2]
[342557383,1731963045136,-500.0,9.999e-05,2]
[342557385,1731963045145,-500.0,9.999e-05,2]
[342557387,1731963045154,-475.37629803,9.999e-05,2]
[342557389,1731963045168,-24.62370197,9.999e-05,2]
[342557391,1731963045177,-500.0,9.999e-05,2]
[342557393,1731963045186,-500.0,9.999e-05,2]
[342557395,1731963045196,-500.0,9.999e-05,2]
[342557397,1731963045206,-593.88,9.999e-05,2]
[342557399,1731963045215,-500.0,9.999e-05,2]
[342557401,1731963045225,-500.0,9.999e-05,2]
[342557403,1731963045234,-232.44880908,9.999e-05,2]
[342557405,1731963045243,-500.0,9.999e-05,2]
[342557407,1731963045253,-500.0,9.999e-05,2]
[342557410,1731963045262,-500.0,9.999e-05,2]
[342557412,1731963045271,-500.0,9.999e-05,2]
[342557415,1731963045280,-500.0,9.999e-05,2]
[342557418,1731963045289,-500.0,9.999e-05,2]
[342557421,1731963045298,-281.53219391,9.999e-05,2]
[342557423,1731963045310,-218.46780609,9.999e-05,2]
[342557425,1731963045320,-500.0,9.999e-05,2]
[342557429,1731963045329,-500.0,9.999e-05,2]
[342557431,1731963045339,-500.0,9.999e-05,2]
[342557434,1731963045349,-150.15077807,9.999e-05,2]
[342557438,1731963045361,-349.84922193,9.999e-05,2]
[342557441,1731963045371,-500.0,9.999e-05,2]
[342557444,1731963045380,-500.0,9.999e-05,2]
[342557447,1731963045390,-500.0,9.999e-05,2]
[342557449,1731963045400,-500.0,9.999e-05,2]
[342557453,1731963045410,-500.0,9.999e-05,2]
[342557456,1731963045428,-500.0,9.999e-05,2]
[342557459,1731963045438,-500.0,9.999e-05,2]
[342557462,1731963045447,-623.06,9.999e-05,2]
[342557465,1731963045457,-558.77,9.999e-05,2]
[342557467,1731963045467,-558.77,9.999e-05,2]
[342557469,1731963045476,-403.42749535,9.999e-05,2]
[342557472,1731963045488,-155.34250465,9.999e-05,2]
[342557474,1731963045498,-558.77,9.999e-05,2]
[342557476,1731963045507,-137.60752444,9.999e-05,2]
[342557478,1731963045519,-421.16247556,9.999e-05,2]
[342557480,1731963045528,-558.77,9.999e-05,2]
[342557482,1731963045537,-558.77,9.999e-05,2]
[342557484,1731963045547,-558.77,9.999e-05,2]
[342557485,1731963045556,-558.77,9.999e-05,2]
[342557487,1731963045566,-558.77,9.999e-05,2]
[342557489,1731963045575,-903.95,9.999e-05,2]
[342557491,1731963045585,-558.77,9.999e-05,2]
[342557493,1731963045594,-903.95,9.999e-05,2]
[342557495,1731963045604,-558.77,9.999e-05,2]
[342557497,1731963045613,-903.95,9.999e-05,2]
[342557499,1731963045622,-558.77,9.999e-05,2]
[342557501,1731963045631,-903.95,9.999e-05,2]
[342557503,1731963045641,-558.77,9.999e-05,2]
[342557505,1731963045650,-13.61562553,9.999e-05,2]
[342557507,1731963045661,-890.33437447,9.999e-05,2]
[342557509,1731963045680,-558.77,9.999e-05,2]
[342557511,1731963045690,-903.95,9.999e-05,2]
[342557513,1731963045700,-558.77,9.999e-05,2]
[342557515,1731963045709,-281.26599295,9.999e-05,2]
[342557518,1731963045720,-218.73400705,9.999e-05,2]
[342557520,1731963045730,-903.95,9.999e-05,2]
[342557522,1731963045739,-558.77,9.999e-05,2]
[342557524,1731963045748,-500.0,9.999e-05,2]
[342557525,1731963045756,-102.43424632,9.999e-05,2]
[342557528,1731963045768,-456.33575368,9.999e-05,2]
[342557530,1731963045777,-903.95,9.999e-05,2]
[342557532,1731963045786,-903.95,9.999e-05,2]
[342557534,1731963045795,-558.77,9.999e-05,2]
[342557536,1731963045806,-558.77,9.999e-05,2]
[342557538,1731963045815,-903.95,9.999e-05,2]
[342557540,1731963045824,-500.0,9.999e-05,2]
[342557542,1731963045833,-558.77,9.999e-05,2]
[342557543,1731963045842,-903.95,9.999e-05,2]
[342557545,1731963045852,-558.88,9.999e-05,2]
[342557547,1731963045861,-321.69727916,9.999e-05,2]
[342557550,1731963045873,-178.30272084,9.999e-05,2]
[342557553,1731963045882,-903.95,9.999e-05,2]
[342557556,1731963045892,-903.95,9.999e-05,2]
[342557558,1731963045901,-903.95,9.999e-05,2]
[342557560,1731963045910,-903.95,9.999e-05,2]
[342557562,1731963045923,-903.95,9.999e-05,2]
[342557564,1731963045933,-903.95,9.999e-05,2]
[342557566,1731963045942,-903.95,9.999e-05,2]
[342557568,1731963045951,-903.95,9.999e-05,2]
[342557570,1731963045960,-500.0,9.999e-05,2]
[342557572,1731963045969,-903.95,9.999e-05,2]
[342557574,1731963045980,-500.0,9.999e-05,2]
[342557576,1731963045990,-903.95,9.999e-05,2]
[342557578,1731963045999,-500.0,9.999e-05,2]
[342557579,1731963046008,-904.01,9.999e-05,2]
[342557581,1731963046017,-500.0,9.999e-05,2]
[342557583,1731963046027,-500.0,9.999e-05,2]
[342557585,1731963046036,-500.0,9.999e-05,2]
[342557587,1731963046045,-161.75,9.999e-05,2]
[342557589,1731963046055,-500.0,9.999e-05,2]
[342557591,1731963046065,-500.0,9.999e-05,2]
[342557593,1731963046073,-295.5,9.999e-05,2]
[342557595,1731963046083,-3930.97423817,0.0001,2]
[342557597,1731963046093,-131927.30112639,0.0001,2]
[342557599,1731963046103,-40467.20106361,0.0001,2]
[342557601,1731963046112,-29705.85997483,0.0001,2]
[342557604,1731963046128,-323.48213933,0.0001,2]
[342557624,1731963046307,-10437.85894942,0.0001,2]
[342557626,1731963046316,-26587.90238088,0.0001,2]
[342557628,1731963046327,-1051.9005864,0.0001,2]
[342557630,1731963046343,-12827.3980963,0.0001,2]
[342557632,1731963046352,-14799.43622303,0.0001,2]
[342557635,1731963046363,-5584.98534987,0.0001,2]
[342557637,1731963046374,-1830.05751654,0.0001,2]
[342557639,1731963046385,-12171.60000028,0.0001,2]
[342557641,1731963046396,-1205.39785756,0.0001,2]
[342557643,1731963046407,-4568.15,0.0001,2]
[342557648,1731963046444,-452446.82986453,0.0001,2]
[342557650,1731963046455,-1247.98589308,0.0001,2]
[342557914,1731963090413,773.89,8.219e-05,2]
[342557915,1731963518567,150.0,8.503e-05,2]
[342557916,1731963823016,778.81,8.219e-05,2]
[342557938,1731964231755,-231.21,9.072e-05,2]
[342557939,1731964231764,-250.0,9.089e-05,2]
[342557940,1731964231774,-802.45,9.118e-05,2]
[342557941,1731964231783,-1000.0,9.228e-05,2]
[342557942,1731964231792,-466.12,9.259e-05,2]
[342557943,1731964231801,-250.0,9.278e-05,2]
[342557944,1731964231811,-250.0,9.279e-05,2]
[342557945,1731964231820,-1649.58122095,9.5e-05,2]
[342557946,1731964231829,-165.82,9.612e-05,2]
[342557947,1731964231838,-167.0,9.627e-05,2]
[342557948,1731964231847,-300.0,9.798e-05,2]
[342557949,1731964231857,-10134.80953444,9.799e-05,2]
[342557950,1731964231873,-7299.3530918,9.799e-05,2]
[342557951,1731964231887,-6269.32437376,9.799e-05,2]
[342557952,1731964231896,-5363.9402,9.8e-05,2]
[342557953,1731964231905,-2816.1148,9.8e-05,2]
[342557954,1731964231915,-150.0,9.899e-05,2]
[342557955,1731964231924,-4122.1245,9.9e-05,2]
[342557956,1731964231934,-500.0,9.9e-05,2]
[342557957,1731964231943,-12553.3245,9.9e-05,2]
[342557958,1731964231957,-7287.4727,9.9e-05,2]
[342557959,1731964231966,-5823.9661,9.9e-05,2]
[342557960,1731964231976,-939.8361,9.9e-05,2]
[342557961,1731964231985,-2086.06709674,9.9e-05,2]
[342557962,1731964231995,-2086.06709673,9.9e-05,2]
[342557963,1731964232004,-186.91719324,9.95e-05,2]
[342557964,1731964232013,-159.53426205,9.983e-05,2]
[342557965,1731964232022,-6101.1369506,9.991e-05,2]
[342557966,1731964232031,-2603.5160735,9.991e-05,2]
[342557967,1731964232040,-5182.9219285,9.993e-05,2]
[342557968,1731964232050,-2211.6895028,9.993e-05,2]
[342557969,1731964232060,-294.29200481,9.999e-05,2]
[342557971,1731964232069,-2169.79073617,9.999e-05,2]
[342557973,1731964232078,-500.0,9.999e-05,2]
[342557975,1731964232088,-500.0,9.999e-05,2]
[342557977,1731964232097,-295.5,9.999e-05,2]